fUSD/lending_fUSD_20240521
["ID","MTS","AMOUNT","RATE_DAILY","PERIOD"]
[327675359,1716306781098,-515.32735112,0.0003315,6]
[327675360,1716306781142,-500.0,0.0003315,6]
[327675361,1716306781186,-513.43694999,0.0003315,6]
[327675362,1716306781231,-500.0,0.0003315,6]
[327675363,1716306781277,-739.89,0.0003315,6]
[327675364,1716306781323,-931.15,0.0003315,6]
[327675365,1716306781373,-925.36,0.0003315,6]
[327675366,1716306781417,-151.0,0.0003315,7]
[327675367,1716306781460,-157.663853,0.0003315,7]
[327675368,1716306781639,-1782.21,0.0003315,6]
[327675369,1716306781684,-500.0,0.0003315,6]
[327675370,1716306781728,-596.49,0.0003315,6]
[327675371,1716306781775,-500.0,0.0003315,6]
[327675372,1716306781823,-1204.89,0.0003315,6]
[327675373,1716306781869,-500.0,0.0003315,6]
[327675374,1716306781916,-500.0,0.0003315,6]
[327675375,1716306781964,-7640.7,0.0003315,6]
[327675376,1716306782011,-500.0,0.0003315,6]
[327675377,1716306782056,-151.0,0.0003315,7]
[327675378,1716306782102,-1006.04,0.0003315,6]
[327675379,1716306782150,-151.0,0.0003315,7]
[327675380,1716306782196,-210.05653088,0.0003315,6]
[327675381,1716306782241,-597.2,0.0003315,6]
[327675382,1716306782286,-500.0,0.0003315,6]
[327675383,1716306782331,-733.42,0.0003315,6]
[327675384,1716306782378,-500.0,0.0003315,6]
[327675385,1716306782426,-500.0,0.0003315,6]
[327675386,1716306782472,-580.23875432,0.0003315,6]
[327675387,1716306785601,192.66,0.00027311,120]
[327675388,1716306817476,500.0,0.00032876,30]
[327675389,1716306817936,533.36,0.0003315,30]
[327675401,1716306994874,9968.3482631,0.0003315,21]
[327675426,1716307539123,-5079.69634499,0.00017257,2]
[327675427,1716307539143,-154.13103875,0.00017582,2]
[327675428,1716307539164,-154.13103875,0.00018263,2]
[327675429,1716307539184,-154.13103875,0.00018945,2]
[327675430,1716307539203,-106.71017136,0.00019118,2]
[327675431,1716307630099,-499.99,0.00019214,2]
[327675432,1716307630124,-10419.56467077,0.00019452,2]
[327675433,1716307638096,-886.13680468,0.00019452,2]
[327675436,1716307751113,-534.72584194,0.00017259,2]
[327675437,1716307751138,-3070.4888,0.00018845,2]
[327675438,1716307751160,-154.59625982,0.00019412,2]
[327675439,1716307751180,-842.06,0.00019512,2]
[327675440,1716307751202,-1000.0,0.00019512,2]
[327675441,1716307751224,-154.59625971,0.00020618,2]
[327675442,1716307751243,-154.59625971,0.00021823,2]
[327675443,1716307751265,-170.25,0.00021918,2]
[327675444,1716307751285,-3201.603151,0.00025244,2]
[327675445,1716307751304,-34.87176774,0.00025372,2]
[327675446,1716307751331,-537.18748957,0.00025372,2]
[327675447,1716307751351,-162.99567391,0.00026094,2]
[327675448,1716307753072,154.59625971,0.00023029,2]
[327675449,1716307765667,155.0597081,0.00019452,2]
[327675473,1716307832428,-154.59625971,0.00024235,2]
[327675474,1716307832439,-154.59625971,0.00025441,2]
[327675475,1716307832449,-10782.70369278,0.00026094,2]
[327675476,1716307832461,-6985.3784,0.00026094,2]
[327675477,1716307832492,-1951.43223331,0.00026094,2]
[327675478,1716307832502,-150.99,0.00026094,2]
[327675479,1716307832513,-154.59625971,0.00026646,2]
[327675480,1716307832523,-577.28,0.00026828,2]
[327675481,1716307832532,-255.64,0.00026863,2]
[327675482,1716307832541,-200.0,0.00026975,2]
[327675483,1716307832551,-1278.36,0.00027015,2]
[327675484,1716307832561,-250.0,0.00027015,2]
[327675485,1716307832572,-390.5,0.00027191,2]
[327675486,1716307832582,-1501.18721029,0.00027238,2]
[327675487,1716307832597,-925.44133947,0.00027238,2]
[327675488,1716307832622,-432.829374,0.00027238,2]
[327675489,1716307832634,-255.97559429,0.00027238,2]
[327675490,1716307832646,-1013.022,0.00027238,2]
[327675491,1716307832658,-4188.76,0.00027238,2]
[327675492,1716307832696,-448.74875887,0.00027238,2]
[327675493,1716307832708,-555.72582948,0.00027238,2]
[327675494,1716307832720,-381.80882812,0.00027238,2]
[327675495,1716307832730,-422.62669177,0.00027277,2]
[327675496,1716307832743,-212.13330823,0.00027277,2]
[327675497,1716307832753,-250.0,0.00027516,2]
[327675498,1716307832763,-3109.70991554,0.00027615,2]
[327675499,1716307832818,-0.11511259,0.00027615,2]
[327675500,1716307832835,-20790.17497187,0.00027615,2]
[327675501,1716307832845,-322.0,0.0002782,2]
[327675502,1716307832855,-154.59625971,0.00027852,2]
[327675503,1716307832865,-168.65,0.00028608,2]
[327675504,1716307832875,-175.99,0.00028622,2]
[327675505,1716307832884,-2129.21,0.00028801,2]
[327675506,1716307832894,-11853.92740725,0.00028891,2]
[327675507,1716307832904,-367.12,0.00028908,2]
[327675509,1716307832913,-154.59625971,0.00029058,2]
[327675511,1716307832922,-250.0,0.00029073,2]
[327675513,1716307832932,-577.28,0.00029092,2]
[327675515,1716307832942,-1000.0,0.00029097,2]
[327675517,1716307832953,-505.19913707,0.00029587,2]
[327675519,1716307832964,-243.18,0.00029614,2]
[327675521,1716307832981,-243.18,0.00029695,2]
[327675523,1716307832990,-243.18,0.00029776,2]
[327675525,1716307833000,-243.18,0.00029857,2]
[327675527,1716307833010,-243.18,0.00029939,2]
[327675529,1716307833019,-243.18,0.0003002,2]
[327675531,1716307833031,-250.0,0.000301,15]
[327675533,1716307833041,-243.18,0.00030101,2]
[327675535,1716307833051,-243.18,0.00030182,2]
[327675537,1716307833061,-243.18,0.00030263,2]
[327675539,1716307833072,-154.59625971,0.00030264,2]
[327675541,1716307833082,-243.18,0.00030345,2]
[327675543,1716307833092,-243.18,0.00030426,2]
[327675546,1716307833102,-243.18,0.00030507,2]
[327675547,1716307833111,-243.18,0.00030588,2]
[327675550,1716307833121,-243.18,0.0003067,2]
[327675552,1716307833131,-243.18,0.00030751,2]
[327675554,1716307833141,-243.18,0.00030832,2]
[327675556,1716307833150,-48187.75147202,0.0003088,2]
[327675558,1716307833160,-243.18,0.00030913,2]
[327675559,1716307833169,-243.18,0.00030994,2]
[327675562,1716307833179,-243.18,0.00031076,2]
[327675564,1716307833189,-159.17153178,0.00031119,7]
[327675565,1716307833198,-243.18,0.00031157,2]
[327675568,1716307833208,-150.0,0.00031241,2]
[327675570,1716307833220,-577.28,0.00031356,2]
[327675571,1716307833229,-150.0,0.00031462,2]
[327675573,1716307833239,-154.59625971,0.00031469,2]
[327675575,1716307833249,-367.12,0.00031648,2]
[327675577,1716307833258,-150.0,0.00031786,2]
[327675578,1716307833268,-150.0,0.00031847,2]
[327675579,1716307833279,-159.1715318,0.00031885,7]
[327675580,1716307833289,-1141.0,0.00032,2]
[327675581,1716307833389,-150.0,0.00032016,2]
[327675582,1716307833399,-150.0,0.00032016,2]
[327675583,1716307833409,-150.0,0.00032066,2]
[327675584,1716307833418,-150.0,0.00032082,2]
[327675585,1716307833428,-158.66159608,0.00032112,7]
[327675586,1716307833437,-150.0,0.00032316,2]
[327675587,1716307833447,-150.0,0.00032331,2]
[327675588,1716307833456,-150.17304743,0.0003234,7]
[327675589,1716307833465,-150.0,0.00032361,2]
[327675590,1716307833477,-191.02905912,0.0003238,2]
[327675591,1716307833487,-150.0,0.00032406,2]
[327675592,1716307833497,-3816.2806237,0.00032476,2]
[327675593,1716307833506,-150.0,0.00032497,2]
[327675594,1716307833515,-160.62,0.00032533,3]
[327675595,1716307833526,-481.88,0.00032533,3]
[327675596,1716307833535,-150.0,0.00032534,2]
[327675597,1716307833545,-3003.54626781,0.00032543,2]
[327675598,1716307833555,-210.6547,0.00032576,2]
[327675599,1716307833564,-2500.0,0.00032576,2]
[327675600,1716307833574,-700.0,0.000326,11]
[327675601,1716307833584,-154.59625971,0.00032675,2]
[327675602,1716307833594,-26281.2485,0.00032675,2]
[327675603,1716307833603,-1000.0,0.00032675,2]
[327675604,1716307833613,-1000.0,0.00032675,2]
[327675605,1716307833623,-11455.6021,0.00032676,2]
[327675606,1716307833632,-10975.0346,0.00032676,2]
[327675607,1716307833641,-1400.0,0.000327,11]
[327675608,1716307833651,-1000.0,0.000327,7]
[327675609,1716307833661,-1564.36069654,0.00032732,2]
[327675610,1716307833670,-1000.0,0.00032734,2]
[327675611,1716307833680,-3816.2806237,0.00032745,2]
[327675612,1716307833690,-175.03,0.00032765,2]
[327675613,1716307833699,-581.40364483,0.00032773,4]
[327675614,1716307833710,-1247.90905639,0.00032774,4]
[327675615,1716307833721,-8258.79054128,0.00032775,2]
[327675616,1716307833745,-2366.14005514,0.00032775,2]
[327675637,1716307838215,-250.0,0.00031919,2]
[327675639,1716307838228,-545.29090358,0.00032775,2]
[327675641,1716307838238,-18026.4836,0.00032775,2]
[327675643,1716307838249,-34829.37269918,0.00032775,2]
[327675645,1716307838261,-508.14303139,0.00032775,2]
[327675648,1716307838315,-308.5542,0.00032775,2]
[327675649,1716307838326,-584.45991213,0.00032775,2]
[327675650,1716307838338,-1017.89196126,0.00032775,2]
[327675651,1716307838382,-525.1332627,0.00032775,2]
[327675652,1716307838393,-698.12,0.00032775,2]
[327675653,1716307838405,-645.95,0.00032775,2]
[327675654,1716307838450,-2858.52606314,0.00032775,2]
[327675655,1716307838462,-1830.29947541,0.00032775,2]
[327675656,1716307838519,-450.89332225,0.00032775,2]
[327675657,1716307838531,-1363.39024112,0.00032775,2]
[327675658,1716307838543,-753.50015,0.00032775,2]
[327675659,1716307838556,-2440.62941193,0.00032775,2]
[327675660,1716307838567,-8154.87871522,0.00032775,2]
[327675661,1716307838579,-983.76358327,0.00032775,2]
[327675662,1716307838590,-987.52639677,0.00032775,2]
[327675663,1716307838691,-0.10503624,0.00032775,2]
[327675785,1716307840253,-983.34596549,0.00032575,2]
[327675786,1716307840265,-12678.87379756,0.00032575,2]
[327675787,1716307840274,-253.10572752,0.0003272,2]
[327675788,1716307840284,-21058.67603799,0.00032775,2]
[327675789,1716307840294,-500.0,0.00032775,2]
[327675790,1716307840304,-7500.0,0.00032775,2]
[327675791,1716307840313,-3299.29677811,0.00032776,2]
[327675792,1716307840325,-31068.33912189,0.00032776,2]
[327675793,1716307840335,-4879.3374,0.00032776,2]
[327675794,1716307840345,-173.36185652,0.00032776,4]
[327675796,1716307840355,-11369.87087703,0.00032776,4]
[327675797,1716307840364,-165.42920419,0.00032776,4]
[327675798,1716307840374,-150.66,0.0003279,2]
[327675800,1716307840383,-175.03,0.0003279,2]
[327675802,1716307840393,-680.76087115,0.000328,11]
[327675805,1716307840404,-1519.23912885,0.000328,11]
[327675807,1716307840413,-208245.90974607,0.000328,10]
[327675809,1716307840428,-355.83967485,0.000328,10]
[327675811,1716307840440,-1605.6,0.000328,10]
[327675814,1716307840451,-1685.86525,0.000328,10]
[327675815,1716307840463,-1053.98522685,0.000328,10]
[327675816,1716307840477,-500.00773998,0.000328,10]
[327675817,1716307840488,-803.19898113,0.000328,10]
[327675818,1716307840503,-268.96630002,0.000328,10]
[327675819,1716307840523,-544.764,0.000328,10]
[327675820,1716307840534,-275270.41281274,0.000328,10]
[327675821,1716307840545,-3173.82104922,0.000328,10]
[327675822,1716307840575,-0.10922659,0.000328,10]
[327675823,1716307840586,-1509.75,0.000328,10]
[327675824,1716307840834,-49227.90548449,0.000328,10]
[327675825,1716307840845,-1864.37378,0.0003282,2]
[327675826,1716307840854,-150.0,0.00032832,2]
[327675827,1716307840864,-365.0,0.0003286,2]
[327675828,1716307840873,-150.66,0.00032866,2]
[327675829,1716307840883,-175.03,0.00032866,2]
[327675830,1716307840892,-2488.24143556,0.00032873,4]
[327675831,1716307840902,-155.0,0.00032873,4]
[327675832,1716307840911,-326.70695678,0.00032874,4]
[327675833,1716307840922,-787.45461326,0.00032875,4]
[327675834,1716307840932,-162.01712187,0.00032875,4]
[327675835,1716307840941,-506.14895864,0.00032876,6]
[327675836,1716307840950,-503.15524515,0.00032876,6]
[327675837,1716307840960,-525.16623237,0.00032876,6]
[327675838,1716307840971,-500.0,0.00032876,6]
[327675839,1716307840988,-527.38975711,0.00032876,6]
[327675840,1716307840998,-516.94036142,0.00032876,6]
[327675841,1716307841008,-157.8996658,0.00032876,6]
[327675842,1716307841017,-180.75751466,0.00032876,6]
[327675843,1716307841029,-532.246116,0.00032876,6]
[327675844,1716307841039,-366.8703171,0.00032876,6]
[327675845,1716307841048,-503.12327814,0.00032876,6]
[327675846,1716307841058,-500.0,0.00032876,6]
[327675847,1716307841069,-605.03413379,0.00032876,6]
[327675848,1716307841078,-510.60918812,0.00032876,6]
[327675849,1716307841087,-500.0,0.00032876,6]
[327675850,1716307841097,-505.84745471,0.00032876,6]
[327675851,1716307841107,-500.0,0.00032876,6]
[327675852,1716307841116,-614.45,0.00032876,6]
[327675853,1716307841125,-559.92,0.00032876,6]
[327675854,1716307841135,-500.0,0.00032876,6]
[327675855,1716307841144,-500.0,0.00032876,6]
[327675856,1716307841155,-500.0,0.00032876,6]
[327675857,1716307841164,-500.0,0.00032876,6]
[327675858,1716307841174,-500.0,0.00032876,6]
[327675859,1716307841183,-500.0,0.00032876,6]
[327675860,1716307841192,-500.0,0.00032876,6]
[327675861,1716307841202,-500.0,0.00032876,6]
[327675862,1716307841212,-500.0,0.00032876,6]
[327675863,1716307841222,-530.42535643,0.00032876,6]
[327675864,1716307841232,-500.0,0.00032876,6]
[327675865,1716307841242,-500.0,0.00032876,6]
[327675866,1716307841251,-500.0,0.00032876,6]
[327675867,1716307841261,-500.0,0.00032876,6]
[327675868,1716307841270,-500.0,0.00032876,6]
[327675869,1716307841281,-500.0,0.00032876,6]
[327675870,1716307841290,-500.0,0.00032876,6]
[327675871,1716307841299,-500.0,0.00032876,6]
[327675872,1716307841309,-500.0,0.00032876,6]
[327675873,1716307841317,-835.19,0.00032876,6]
[327675874,1716307841327,-500.0,0.00032876,6]
[327675875,1716307841336,-500.0,0.00032876,6]
[327675876,1716307841346,-500.0,0.00032876,6]
[327675877,1716307841355,-500.0,0.00032876,6]
[327675878,1716307841364,-500.0,0.00032876,6]
[327675879,1716307841373,-500.0,0.00032876,6]
[327675880,1716307841382,-500.0,0.00032876,6]
[327675881,1716307841391,-500.0,0.00032876,6]
[327675882,1716307841400,-500.0,0.00032876,6]
[327675883,1716307841409,-500.0,0.00032876,6]
[327675884,1716307841418,-500.0,0.00032876,6]
[327675885,1716307841427,-500.0,0.00032876,6]
[327675886,1716307841438,-500.0,0.00032876,6]
[327675887,1716307841448,-500.0,0.00032876,6]
[327675888,1716307841457,-500.0,0.00032876,6]
[327675889,1716307841479,-500.0,0.00032876,6]
[327675890,1716307841521,-512.49858376,0.00032876,6]
[327675891,1716307841563,-500.0,0.00032876,6]
[327675892,1716307841609,-500.0,0.00032876,6]
[327675893,1716307841642,-500.0,0.00032876,6]
[327675894,1716307841651,-500.0,0.00032876,6]
[327675895,1716307841661,-500.0,0.00032876,6]
[327675896,1716307841671,-500.0,0.00032876,6]
[327675897,1716307841680,-500.0,0.00032876,6]
[327675898,1716307841690,-500.0,0.00032876,6]
[327675899,1716307841700,-500.0,0.00032876,6]
[327675900,1716307841709,-506.60026303,0.00032876,6]
[327675901,1716307841718,-500.0,0.00032876,6]
[327675902,1716307841729,-500.0,0.00032876,6]
[327675903,1716307841738,-500.0,0.00032876,6]
[327675904,1716307841747,-215.31423449,0.00032876,6]
[327675905,1716307841756,-545.09,0.00032876,6]
[327675906,1716307841765,-500.0,0.00032876,6]
[327675907,1716307841775,-500.0,0.00032876,6]
[327675908,1716307841784,-500.0,0.00032876,6]
[327675909,1716307841794,-543.73880237,0.00032876,6]
[327675910,1716307841803,-500.0,0.00032876,6]
[327675911,1716307841812,-500.0,0.00032876,6]
[327675912,1716307841821,-500.0,0.00032876,6]
[327675913,1716307841831,-500.0,0.00032876,6]
[327675914,1716307841840,-500.0,0.00032876,6]
[327675915,1716307841849,-569.15672027,0.00032876,6]
[327675916,1716307841859,-500.0,0.00032876,6]
[327675917,1716307841868,-500.0,0.00032876,6]
[327675918,1716307841878,-500.0,0.00032876,6]
[327675919,1716307841888,-500.0,0.00032876,6]
[327675920,1716307841898,-500.0,0.00032876,6]
[327675921,1716307841907,-500.0,0.00032876,6]
[327675922,1716307841917,-500.0,0.00032876,6]
[327675923,1716307841927,-500.0,0.00032876,6]
[327675924,1716307841936,-501.88696321,0.00032876,6]
[327675925,1716307841946,-906.6,0.00032876,6]
[327675926,1716307841956,-500.0,0.00032876,6]
[327675927,1716307841965,-500.0,0.00032876,6]
[327675928,1716307841976,-500.0,0.00032876,6]
[327675929,1716307841986,-500.0,0.00032876,6]
[327675930,1716307841998,-500.0,0.00032876,6]
[327675931,1716307842009,-500.0,0.00032876,6]
[327675932,1716307842018,-516.61364452,0.00032876,6]
[327675933,1716307842028,-500.0,0.00032876,6]
[327675934,1716307842041,-500.0,0.00032876,6]
[327675935,1716307842051,-500.0,0.00032876,6]
[327675936,1716307842060,-500.0,0.00032876,6]
[327675937,1716307842072,-500.0,0.00032876,6]
[327675938,1716307842082,-500.0,0.00032876,6]
[327675939,1716307842091,-500.0,0.00032876,6]
[327675940,1716307842100,-513.28003075,0.00032876,6]
[327675941,1716307842110,-500.0,0.00032876,6]
[327675942,1716307842119,-500.0,0.00032876,6]
[327675943,1716307842129,-528.03573263,0.00032876,6]
[327675944,1716307842138,-500.0,0.00032876,6]
[327675945,1716307842147,-500.0,0.00032876,6]
[327675946,1716307842156,-500.0,0.00032876,6]
[327675947,1716307842166,-521.00310144,0.00032876,6]
[327675948,1716307842176,-500.0,0.00032876,6]
[327675949,1716307842185,-501.62584134,0.00032876,6]
[327675950,1716307842194,-500.0,0.00032876,6]
[327675951,1716307842204,-500.0,0.00032876,6]
[327675952,1716307842213,-633.05,0.00032876,6]
[327675953,1716307842223,-500.0,0.00032876,6]
[327675954,1716307842234,-500.0,0.00032876,6]
[327675955,1716307842244,-500.0,0.00032876,6]
[327675956,1716307842253,-500.0,0.00032876,6]
[327675957,1716307842262,-500.0,0.00032876,6]
[327675958,1716307842272,-558.69,0.00032876,6]
[327675959,1716307842281,-1317.9,0.00032876,6]
[327675960,1716307842291,-500.0,0.00032876,6]
[327675961,1716307842300,-500.0,0.00032876,6]
[327675962,1716307842309,-500.0,0.00032876,6]
[327675964,1716307842319,-711.25,0.00032876,6]
[327675966,1716307842328,-500.0,0.00032876,6]
[327675968,1716307842338,-500.0,0.00032876,6]
[327675969,1716307842348,-1101.06,0.00032876,6]
[327675970,1716307842357,-500.0,0.00032876,6]
[327675971,1716307842367,-500.0,0.00032876,6]
[327675972,1716307842376,-500.0,0.00032876,6]
[327675973,1716307842386,-500.0,0.00032876,6]
[327675974,1716307842395,-1215.56,0.00032876,6]
[327675975,1716307842404,-500.0,0.00032876,6]
[327675976,1716307842414,-2188.82,0.00032876,6]
[327675977,1716307842423,-500.0,0.00032876,6]
[327675978,1716307842432,-514.47407518,0.00032876,6]
[327675979,1716307842441,-500.0,0.00032876,6]
[327675980,1716307842450,-500.0,0.00032876,6]
[327675981,1716307842460,-500.0,0.00032876,6]
[327675982,1716307842469,-500.0,0.00032876,6]
[327675983,1716307842481,-500.0,0.00032876,6]
[327675984,1716307842490,-543.27,0.00032876,6]
[327675985,1716307842499,-656.39,0.00032876,6]
[327675986,1716307842508,-555.86,0.00032876,6]
[327675987,1716307842517,-500.0,0.00032876,6]
[327675988,1716307842526,-508.46312574,0.00032876,6]
[327675989,1716307842535,-500.0,0.00032876,6]
[327675990,1716307842545,-500.0,0.00032876,6]
[327675991,1716307842554,-500.0,0.00032876,6]
[327675992,1716307842564,-500.0,0.00032876,6]
[327675993,1716307842573,-507.51,0.00032876,6]
[327675994,1716307842582,-796.93,0.00032876,6]
[327675995,1716307842592,-500.0,0.00032876,6]
[327675996,1716307842601,-500.0,0.00032876,6]
[327675997,1716307842610,-500.0,0.00032876,6]
[327675999,1716307842620,-748.16,0.00032876,6]
[327676000,1716307842629,-500.0,0.00032876,6]
[327676001,1716307842638,-500.0,0.00032876,6]
[327676002,1716307842648,-504.28,0.00032876,6]
[327676003,1716307842657,-548.63,0.00032876,6]
[327676004,1716307842666,-2124.6,0.00032876,6]
[327676005,1716307842676,-836.2,0.00032876,6]
[327676006,1716307842685,-464.21591574,0.00032876,6]
[327676007,1716307842694,-500.0,0.00032876,6]
[327676008,1716307842704,-500.0,0.00032876,6]
[327676009,1716307842714,-529.29803806,0.00032876,6]
[327676010,1716307842727,-500.0,0.00032876,6]
[327676011,1716307842737,-678.33,0.00032876,6]
[327676012,1716307842747,-524.17503254,0.00032876,6]
[327676013,1716307842756,-500.0,0.00032876,6]
[327676014,1716307842766,-550.07,0.00032876,6]
[327676015,1716307842776,-500.0,0.00032876,6]
[327676016,1716307842786,-151.0,0.00032876,7]
[327676017,1716307842795,-500.0,0.00032876,6]
[327676018,1716307842805,-500.0,0.00032876,6]
[327676019,1716307842814,-500.0,0.00032876,6]
[327676020,1716307842824,-500.0,0.00032876,6]
[327676021,1716307842834,-500.0,0.00032876,6]
[327676022,1716307842844,-500.0,0.00032876,6]
[327676023,1716307842854,-500.0,0.00032876,6]
[327676024,1716307842864,-953.54,0.00032876,6]
[327676025,1716307842874,-500.0,0.00032876,6]
[327676026,1716307842884,-500.0,0.00032876,6]
[327676027,1716307842894,-1017.69,0.00032876,6]
[327676028,1716307842903,-500.0,0.00032876,6]
[327676029,1716307842913,-521.06547861,0.00032876,6]
[327676030,1716307842923,-500.0,0.00032876,6]
[327676031,1716307842932,-519.2088194,0.00032876,6]
[327676032,1716307842942,-500.0,0.00032876,6]
[327676033,1716307842951,-500.0,0.00032876,6]
[327676034,1716307842961,-289.88954657,0.00032876,6]
[327676035,1716307842970,-500.0,0.00032876,6]
[327676037,1716307842983,-500.0,0.00032876,6]
[327676038,1716307842993,-500.0,0.00032876,6]
[327676039,1716307843004,-500.0,0.00032876,6]
[327676041,1716307843015,-1061.9,0.00032876,6]
[327676043,1716307843025,-546.91744113,0.00032876,6]
[327676044,1716307843036,-151.0,0.00032876,7]
[327676046,1716307843046,-666.57,0.00032876,6]
[327676047,1716307843055,-500.0,0.00032876,6]
[327676049,1716307843065,-500.0,0.00032876,6]
[327676051,1716307843076,-548.46,0.00032876,6]
[327676053,1716307843086,-794.43,0.00032876,6]
[327676055,1716307843096,-542.00529308,0.00032876,6]
[327676056,1716307843105,-500.0,0.00032876,6]
[327676057,1716307843114,-151.0,0.00032876,7]
[327676058,1716307843124,-500.0,0.00032876,6]
[327676059,1716307843133,-500.0,0.00032876,6]
[327676060,1716307843142,-500.0,0.00032876,6]
[327676061,1716307843151,-745.04,0.00032876,6]
[327676071,1716307843383,-151.0,0.00032876,7]
[327676072,1716307843453,-500.0,0.00032876,6]
[327676073,1716307843463,-500.0,0.00032876,6]
[327676074,1716307843474,-666.75,0.00032876,6]
[327676075,1716307843483,-507.18718404,0.00032876,6]
[327676076,1716307843492,-532.72444851,0.00032876,6]
[327676077,1716307843501,-500.0,0.00032876,6]
[327676078,1716307843511,-503.62,0.00032876,6]
[327676079,1716307843521,-500.0,0.00032876,6]
[327676080,1716307843530,-500.0,0.00032876,6]
[327676081,1716307843539,-631.02,0.00032876,6]
[327676082,1716307843549,-671.14,0.00032876,6]
[327676083,1716307843558,-500.0,0.00032876,6]
[327676084,1716307843568,-524.93496677,0.00032876,6]
[327676085,1716307843578,-151.0,0.00032876,7]
[327676086,1716307843587,-500.0,0.00032876,6]
[327676087,1716307843597,-747.42,0.00032876,6]
[327676088,1716307843606,-520.76,0.00032876,6]
[327676089,1716307843617,-306.0099573,0.00032876,6]
[327676090,1716307843626,-613.25,0.00032876,6]
[327676091,1716307843636,-500.0,0.00032876,6]
[327676092,1716307843646,-334.10352541,0.00032876,6]
[327676093,1716307843656,-500.0,0.00032876,6]
[327676094,1716307843665,-542.86,0.00032876,6]
[327676095,1716307843675,-151.0,0.00032876,7]
[327676096,1716307843684,-500.0,0.00032876,6]
[327676097,1716307843694,-578.01,0.00032876,6]
[327676098,1716307843703,-500.0,0.00032876,6]
[327676099,1716307843713,-500.0,0.00032876,6]
[327676100,1716307843722,-642.39,0.00032876,6]
[327676101,1716307843734,-500.0,0.00032876,6]
[327676102,1716307843743,-500.0,0.00032876,6]
[327676103,1716307843753,-500.0,0.00032876,6]
[327676104,1716307843762,-151.0,0.00032876,7]
[327676105,1716307843771,-517.26827925,0.00032876,6]
[327676106,1716307843780,-571.25,0.00032876,6]
[327676107,1716307843789,-500.0,0.00032876,6]
[327676108,1716307843799,-151.0,0.00032876,7]
[327676109,1716307843809,-500.0,0.00032876,6]
[327676110,1716307843818,-500.0,0.00032876,6]
[327676111,1716307843827,-207.1997487,0.00032876,6]
[327676112,1716307843836,-500.0,0.00032876,6]
[327676113,1716307843846,-500.0,0.00032876,6]
[327676114,1716307843855,-664.07,0.00032876,6]
[327676115,1716307843864,-500.0,0.00032876,6]
[327676116,1716307843874,-328.28439131,0.00032876,6]
[327676117,1716307843883,-500.0,0.00032876,6]
[327676118,1716307843892,-516.45,0.00032876,6]
[327676119,1716307843902,-577.71,0.00032876,6]
[327676120,1716307843911,-500.0,0.00032876,6]
[327676121,1716307843921,-678.23,0.00032876,6]
[327676123,1716307843930,-500.0,0.00032876,6]
[327676125,1716307843940,-151.0,0.00032876,7]
[327676127,1716307843951,-150.0,0.00032876,6]
[327676129,1716307843960,-736.32,0.00032876,6]
[327676131,1716307843969,-692.38,0.00032876,6]
[327676133,1716307843982,-507.35471958,0.00032876,2]
[327676135,1716307843992,-500.0,0.00032876,6]
[327676138,1716307844001,-667.47,0.00032876,6]
[327676141,1716307844010,-1045.63,0.00032876,6]
[327676144,1716307844020,-500.0,0.00032876,6]